{"text_format":"1","workbook":"xlsx","n_sheets":3,"sheets":["Заявка на отгрузку","Условия отгрузки","Схема проезда"],"not_rendered":{"charts":0,"images":2,"macros":1,"external_links":0,"defined_names":6,"comments":0,"pivot_tables":0},"unopened":[],"bounds":{"document_bytes":16777216,"sheet_cells":100000,"rows_first":2000,"rows_last":500,"rows_between":2000,"halvings":0,"cell_chars":16384,"cell_head_chars":4096},"cells_cut":0,"cells_raw":0,"read":"whole","date_system":"1900"}

{"sheet":"Заявка на отгрузку","index":0,"n_rows":65,"n_cols":10,"rows_kept":65,"cut":false,"hidden":false,"merged":[[2,0,2,5],[1,0,1,5],[22,1,22,2],[21,5,21,8],[20,5,20,8],[14,5,14,8],[16,5,16,8],[17,5,18,8],[9,5,9,8],[10,5,10,8],[11,5,11,8],[12,5,12,8],[13,5,13,8],[7,6,8,8],[15,5,15,8]]}
[{"$f":"CONCATENATE(B4,\" от \",C6,\"_\",C12)","v":"Заявка на  от ООО \"Клиент\"_Транспорт поставщика"}]
[{"$f":"IF(C12<>$E$50,\"ЗАЯВКА НА ОТГРУЗКУ\",\"ЗАЯВКА НА ПРИВОЗ ДАВС\")","v":"ЗАЯВКА НА ОТГРУЗКУ"}]
["в ООО \"ДомГласс\"",null,null,null,null,null,null,null,"www.glass-store.ru"]
[null,"Заявка на ",{"$f":"CONCATENATE(B4,C12,\" от \",C6)","v":"Заявка на Транспорт поставщика от ООО \"Клиент\""},{"$f":"CONCATENATE(LEFT(A2,6),\" от \",C6,\"_\",C12)","v":"ЗАЯВКА от ООО \"Клиент\"_Транспорт поставщика"},{"$f":"NOW()","v":"2025-04-14T12:55:14.330"},null,null,null,{"$f":"IF($D$5<6,\"ПРИЁМ ЗАЯВОК:\",\"\")","v":"ПРИЁМ ЗАЯВОК:"}]
[null,{"$f":"IF($D$5>5,\"Ошибка: сегодня выходной день!\",\"Дата отправления заявки\")","v":"Дата отправления заявки"},{"$f":"IF($D$5>5,\"Ошибка: сегодня выходной день!\",NOW())","v":"2025-04-14T12:55:14.330"},{"$f":"WEEKDAY($E$4,2)","v":1},"№ заказа",{"$f":"LEN(E6)","v":9},null,null,{"$f":"IF($D$5<6,\"На самовывоз / привоз ДавС - до 16:30\",\"\")","v":"На самовывоз / привоз ДавС - до 16:30"}]
[{"$f":"IF(C6<>\"\",\"a\",\"r\")","v":"a"},"Клиент","ООО \"Клиент\"",null,"ДГ23-хххх",null,null,null,{"$f":"IF($D$5<6,\"На доставку транспортом Поставщика - до 16:00\",\"\")","v":"На доставку транспортом Поставщика - до 16:00"},{"$f":"IF(A6=\"a\",1,0)","v":1}]
["a","Представитель клиента № 1","Васильев Василий",null,"ИП23-ххх",null,null,null,"В ВЫХОДНЫЕ И ПРАЗДНИЧНЫЕ ДНИ - НЕ ПРИНИМАЮТСЯ",1]
["a","Телефон представителя № 1",80000000000,null,"ТР23-ххх",null,{"$f":"IF($D$5<6,IF(E18=6,\"В субботу самовывоз и приём Давс: до 13:00\",\"Самовывоз с пн. по пт.: 10:00-17:00; обед: 13:00-14:00; сб.: до 12:00; вс.: вых.\"),\"\")","v":"Самовывоз с пн. по пт.: 10:00-17:00; обед: 13:00-14:00; сб.: до 12:00; вс.: вых."},null,null,1]
["a","Контактный E-mail клиента","mail@mail.ru",null,"ДС23-ххх",null,null,null,null,1]
[{"$f":"IF(C10<>\"\",\"a\",\"v\")","v":"a"},"Менеджер Поставщика","Азимов Дмитрий",null,null,"Доставка Транспортом ДГ осуществляется с пн. по сб.  ",null,null,null,{"$f":"IF(A10=\"a\",1,0)","v":1}]
[null,{"$f":"CONCATENATE(F18,\"; \",C11)","v":{"$error":"#N/A"}},{"$f":"VLOOKUP(C$10,H48:I53,2,0)","v":{"$error":"#N/A"}},null,null,"Контакты для отправки заявки:"]
[{"$f":"IF(C12<>\"\",\"a\",\"r\")","v":"a"},"Условия отгрузки","Транспорт поставщика",null,null,"Руководитель отдела логистики ООО \"ДомГласс\"",null,null,null,{"$f":"IF(A12=\"a\",1,0)","v":1}]
[{"$f":"IF(C13<>\"\",IF(C13<C5,\"r\",\"a\"),\"r\")","v":"r"},{"$f":"IF($C$12=$E$49,\"Планируемая дата отгрузки:\",\"Планируемая дата отгрузки:\")","v":"Планируемая дата отгрузки:"},"2023-07-15T13:29:23.050",null,null,"Динкель Любовь Михайловна",null,null,null,0]
[{"$f":"IF(C14<>\"\",\"a\",\"r\")","v":"a"},{"$f":"IF($C$12=$E$49,\"Желаемое время подачи машины\",\"Планируемое время приезда\")","v":"Желаемое время подачи машины"},"10:00-12:00",null,null," +7 (495) 926-65-71 доб.362",null,null,null,1]
[{"$f":"IF($C$12<>$E$48,\"\",IF($C$15<>\"\",\"a\",\"r\"))","v":""},{"$f":"IF($C$12=$E$49,\"\",\"Грузоподъемность машины, тонн\")","v":""},1.5,null,null," +7 (916) 134-43-81",null,null,null,{"$f":"IF($C$12=$E$48,IF(A15=\"a\",1,0),1)","v":1}]
[{"$f":"IF($C$12=\"Транспорт поставщика\",\"\",IF($C$16<>\"\",\"a\",\"r\"))","v":""},{"$f":"IF($C$12=$E$49,\"\",\"Тип кузова\")","v":""},"Легковой",null,null,"dinkel.l@domglass.ru",null,null,null,{"$f":"IF($C$12=$E$48,IF($A16=\"a\",1,0),1)","v":1}]
[{"$f":"IF($C$12<>$E$48,\"\",IF($C$17<>\"\",\"a\",\"r\"))","v":""},{"$f":"IF($C$12=$E$49,\"\",\"Наличие транспортной пирамиды\")","v":""},"Да",null,null,"Адрес для самовывоза: ",null,null,null,{"$f":"IF($C$12=$E$48,IF(A17=\"a\",1,0),1)","v":1}]
[null,{"$f":"IF(C12<>$E$49,\"ФИО водителя\",\"Контакт на разгрузке\")","v":"Контакт на разгрузке"},"Николаев Николай",null,null,"МО, Домодедово, микрорайон Западный, территория Интегра, стр. 3 (координаты: 55.440171, 37.723403)"]
[{"$f":"IF(D19>10,\"a\",\"r\")","v":"a"},{"$f":"IF(C12<>$E$49,\"Телефон водителя\",\"Телефон контактного лица\")","v":"Телефон контактного лица"},80000000000,{"$f":"LEN(C19)","v":11},null,null,null,null,null,{"$f":"IF(A19=\"a\",1,0)","v":1}]
[null,{"$f":"IF(C12=$E$48,\"\",IF($D$21<15,\"Указан слишком короткий или не точный адрес доставки !\",\"\"))","v":""},null,null,{"$f":"WEEKDAY($C13,2)","v":6}]
[{"$f":"IF(C21<>\"\",\"a\",\"r\")","v":"a"},{"$f":"IF($C$12=$E$49,\"Адрес доставки:\",\"Дополнительная информация\")","v":"Адрес доставки:"},"ггггггггггггггггг",{"$f":"LEN(C21)","v":17},null,"Ссылка на заявку через сайт компании",null,null,null,{"$f":"IF(C12=$E$48,1,IF(D21>=15,1,0))","v":1}]
[null,"Комментарии Клиента",null,{"$f":"LEN(C22)","v":0},null,"www.glass-store.ru/zayavka-na-otgruzku-stekla",null,null,null,{"$f":"IF(C13=$E$48,1,IF(D22>=15,1,0))","v":0}]
[null,"Просим ознакомиться с Условиями Отгрузки ООО \"ДомГласс\"",null,null,null,null,null,null,null,{"$f":"SUM(J6:J22)+G5","v":12}]
[null,"Отправляя данную Заявку, Заказчик подтверждает, что ознакомлен и согласен с условиями отгрузки в ООО \"ДомГласс\""]
[]
[]
[]
[]
[]
[]
[]
[]
[]
[]
[]
[]
[]
[]
[]
[]
[]
[]
[]
[]
[null,"https://www.glass-store.ru/https://www.glass-store.ru/zayavka-na-otgruzku-steklazayavka-na-otgruzku-stekla"]
[null,{"$f":"IF($C$12<>$E$49,IF($E$20=6,\"10:00-11:00\",\"10:00-12:00\"),\"10:00-12:00\")","v":"10:00-12:00"},0.3]
[null,{"$f":"IF($C$12<>$E$49,IF($E$20=6,\"11:00-12:00\",\"11:00-13:00\"),\"11:00-13:00\")","v":"11:00-13:00"},0.5]
[null,{"$f":"IF($C$12<>$E$49,IF($E$20=6,\"12:00-13:00\",\"14:00-16:00\"),\"12:00-14:00\")","v":"12:00-14:00"},1,{"$f":"WEEKDAY($F48,2)","v":2},"Самовывоз",{"$f":"IF($D$5<=5,$E$4+1,IF($D$5=7,$E$4+2,$E$4+3))","v":"2025-04-15T12:55:14.330"},"Открытый борт/пирамида","Алимова Елена","alimova.e@domglass.ru","Да"]
[null,{"$f":"IF($C$12<>$E$49,IF($E$20=6,\"\",\"15:00-17:00\"),\"13:00-15:00\")","v":"13:00-15:00"},1.5,3,"Транспорт поставщика",{"$f":"IF($D48<=5,$F48+1,IF(D48=6,$F48+2,$F49+1))","v":"2025-04-16T12:55:14.330"},"Фургон","Григорьевская Татьяна","grigorevskaja.t@domglass.ru","Нет"]
[null,{"$f":"IF($C$12<>$E$49,IF($E$20=6,\"\",\"16:00-17:30\"),\"14:00-16:00\")","v":"14:00-16:00"},2,4,"Привоз ДАВС",{"$f":"IF($D49<=5,$F49+1,IF(D49=6,$F49+2,$F49+1))","v":"2025-04-17T12:55:14.330"},"Тент","Моргунов Алексей","morgunov.a@domglass.ru"]
[null,"18:00-19:00",3,5,"Добрый день!\nПросим принять заявку на отгрузку.","2025-04-18T12:55:14.330","Минивен","Егорушкина Наталья","egorushkina.n@domglass.ru"]
[null,"19:00-20:00",5,6,null,"2025-04-19T12:55:14.330","Универсал","Пастухова Светлана","pastuhova.s@domglass.ru"]
[null,"к 21:00",10,{"$f":"WEEKDAY($F53,2)","v":1},null,"2025-04-21T12:55:14.330","Легковой","Иваничкина Наталья","ivanichkina.n@domglass.ru"]
[null,"к 22:00",20,2,null,"2025-04-22T12:55:14.330",null,"Азимов Дмитрий","azimov.d@domglass.ru"]
[null,"к 23:00",null,3,null,"2025-04-23T12:55:14.330",null,"Мельникова Екатерина","melnikova.e@domglass.ru "]
[null,"к 00:00",null,4,null,"2025-04-24T12:55:14.330",null,"Гурьев Андрей","gurev.a@domglass.ru"]
[null,"к 01:00 ночи",null,5,null,"2025-04-25T12:55:14.330",null,"Мусуков Марат","Musukov.Marat@domglass.ru"]
[null,null,null,6,null,"2025-04-26T12:55:14.330",null,"Хаулин Владислав ","haulin.v@domglass.ru"]
[null,null,null,1,null,"2025-04-28T12:55:14.330",null,"Бурдастых Алексей","Burdastich.Aleksey@domglass.ru"]
[null,null,null,2,null,{"$f":"IF($D59<=5,$F59+1,IF(D59=6,$F59+2,$F59+1))","v":"2025-04-29T12:55:14.330"}]
[null,null,null,3,null,"2025-04-30T12:55:14.330"]
[null,null,null,4,null,"2025-05-01T12:55:14.330"]
[null,null,null,5,null,"2025-05-02T12:55:14.330"]
[null,null,null,6,null,"2025-05-03T12:55:14.330"]
[null,null,null,1,null,"2025-05-05T12:55:14.330"]

{"sheet":"Условия отгрузки","index":1,"n_rows":61,"n_cols":4,"rows_kept":61,"cut":false,"hidden":false,"merged":[]}
[]
[null,null,null,"УСЛОВИЯ ОТГРУЗКИ"]
[null,"САМОВЫВОЗ"]
[null," - Погрузка заказов силами сотрудников ООО «Дом Гласс» при самовывозе производится только в транспортные средства, предназначенные для перевозки "]
[null,"   стеклоизделий, т.е. с открытым бортом и возможностью боковой загрузки, а также оборудованные специальной транспортной пирамидой! "]
[null," - Водитель клиента ОБЯЗАН иметь для отгрузки самовывозом ОРИГИНАЛ правильно оформленной Доверенности на получение ТМЦ или печать."]
[null," - Стекло к пирамиде ОБЯЗАТЕЛЬНО должно крепиться 4-мя (четырьмя) комплектами ремней с храповым механизмом."]
[null," - Транспортное средство ОБЯЗАТЕЛЬНО должно соответствовать грузоподъемности, габаритам и категории перевозимого груза. "]
[null,"А именно:"]
[null,"* Вес стекла с учётом веса транспортной пирамиды КАТЕГОРИЧЕСКИ не должен превышать максимальную грузоподъемность транспортного средства, "]
[null,"задействованного к перевозке."]
[]
[null,"Погрузка всех типов ящиков при самовывозе осуществляется только краном-балкой в машину с открытым типом кузова или с расчехляющимся верхом "]
[null,"для возможности верхней загрузки !"]
[]
[null,"Ящики, которые не крепятся на транспортную пирамиду, должны быть закреплены к кузову,  исключая возможность их перемещения и качания в процессе "]
[null,"транспортировки. Погрузка таких ящиков осуществляется только через верх кузова краном-балкой."]
[]
[null,"ВАЖНО: при не соблюдении условий Договора, касающихся сроков оплаты и предоставления лимита отгрузки, а также при подаче на самовывоз "]
[null,"транспортного средства, не оборудованного транспортной пирамидой, крепежными ремнями с храповым механизмом, не предназначенного для "]
[null,"перевозки стеклоизделий и не соответствующего габаритам заказа и методам погрузки, Поставщик оставляет за собой право отказать в отгрузке заказа!"]
[]
[null,"ДОСТАВКА"]
[null,"При подаче транспортного средства на адрес выгрузки Грузополучатель должен обеспечить условия для его своевременной разгрузки."]
[null,"Грузополучателю для разгрузки транспорта Поставщика отводится следующее время:"]
[]
[null,"- Транспорт грузоподъёмностью до 1,5 тонн – 40 минут"]
[null,"- Транспорт грузоподъёмностью до 2,0 тонн – 1 час"]
[null,"- Транспорт грузоподъёмностью до 5,0 тонн – 2,5 часа"]
[null,"- Транспорт грузоподъёмностью свыше 5,0 тонн – время на разгрузку оговаривается отдельно при отправке Грузополучателем заявки на доставку."]
[null,"Простой транспорта Поставщика на объекте выгрузки свыше указанного выше времени оплачивается Грузополучателем из расчёта от 500 руб. за каждый час простоя !"]
[]
[null,"В случаях опоздания Грузоперевозчика на объект доставки в интервал, указанный Грузополучателем в заявке на доставку (интервал указан в Няряд-заказе"]
[null,"Грузоперевозчика), ответственность Грузополучателя за простой опоздавшего транспорта не учитывается."]
[]
[null,"До начала выгрузки ответственный представитель со стороны Грузополучателя должны произвести визуальный осмотр получаемого груза."]
[null,"При отсутствии претензий к качеству, количеству груза, а также при отсутствии явных браков груза представитель Грузополучателя до начала разгрузки делает "]
[null,"отметки о приёме груза в экземплярах бухгалтерских и  сопроводительных документов Грузоперевозчика, а именно: в УПД."]
[null,"в сопроводительных накладных иных унифицированных формах, в Путевом листе (Наряд-Заказе) Грузоперевозчика. Документы оформляются в соответствии с"]
[null,"общими правилами оформления документов, принятыми на территории РФ (документы заверяются подписями чернилами синего или фиолетового цвета, в том "]
[null,"числе обязателен оттиск круглой печати Грузополучателя или оригинал правильно оформленной доверенности на получение ТМЦ формы М-2(а))."]
[]
[null,"Если, по мнению представителя Грузоперевозчика, Грузополучатель оформил полученные для подписания документы не должным образом, Грузоперевозчик имеет"]
[null,"право указать Грузополучателю на необходимость исправления допущенных при оформлении ошибок, а при невозможности исправления таковых потребовать"]
[null,"замены своих испорченных экземпляров документов на экземпляры, предназначенные Грузополучателю. Повторное оформление бухгалтерских и сопроводитель-"]
[null,"ных документов должно производиться при обязательном присутствии и контроле представителя Грузоперевозчика."]
[]
[null,"После проставления отметок (оформления) Грузополучателем в обоих экземплярах бухгалтерских и прочих сопроводительных документов на груз и услуги, один "]
[null,"экземпляр документов остаётся у Грузополучателя, второй экземпляр передаётся Грузоперевозчику (для возврата Поставщику)."]
[]
[null,"После обмена документами Грузополучатель приступает к разгрузке товара."]
[null,"В случае обнаружения несоответствий груза по количеству, указанному в сопроводительных документах, и качеству (обнаружение брака), Грузополучатель должен "]
[null,"составить в 2-х экземплярах Акт о несоответствии получаемого груза (недостача, пересорт, брак), а в товарно-транспортной накладной, при её наличии, сделать "]
[null,"отметку о составленном Акте в разделе Сведения о грузе."]
[]
[null," - Первый экземпляр Акта остаётся у Грузополучателя"]
[null," - Второй экземпляр Акта остаётся у Грузоперевозчика"]
[]
[null,"Товарная накладная Торг-12 и Акты об услугах Поставщика даже в случаях расхождений по количеству и качеству подписываются Грузополучателем в полном "]
[null,"объёме принимаемого груза до составления Акта о несоответствии , т.к. не подписанные документы не могут служить основанием для возмещения убытков "]
[null,"Поставщиком или Грузоперевозчиком."]

{"sheet":"Схема проезда","index":2,"n_rows":0,"n_cols":0,"rows_kept":0,"cut":false,"hidden":false,"merged":[]}